[Event "Titled Tuesday Blitz May 24 Early 2022"]
[White "Taboas Rodriguez, Daniel"]
[Black "Toncheva, Nadya"]
[WhiteFideId "2208466"]
[BlackFideId "2924056"]
[WhiteElo "2429"]
[BlackElo "1888"]
[Result "1-0"]
[Round "03"]
[TimeControl "180+1"]
[Date "2022.05.25"]
[WhiteClock "0:02:29"]
[BlackClock "0:01:26"]

1. d4 {[%clk 0:02:59]}  d6 {[%clk 0:03:00]} 2. Nf3 {[%clk 0:03:00]}  d5 {[%clk 0:03:00]} 3. c4 {[%clk 0:02:59]}  dxc4 {[%clk 0:02:55]} 4. e3 {[%clk 0:02:54]}  Nf6 {[%clk 0:02:53]} 5. Bxc4 {[%clk 0:02:54]}  e6 {[%clk 0:02:44]} 6. O-O {[%clk 0:02:54]}  c5 {[%clk 0:02:43]} 7. b3 {[%clk 0:02:51]}  Nc6 {[%clk 0:02:43]} 8. Bb2 {[%clk 0:02:51]}  a6 {[%clk 0:02:43]} 9. Qe2 {[%clk 0:02:43]}  Be7 {[%clk 0:02:38]} 10. Rd1 {[%clk 0:02:43]}  b5 {[%clk 0:02:32]} 11. dxc5 {[%clk 0:02:42]}  Qc7 {[%clk 0:02:29]} 12. Bd3 {[%clk 0:02:41]}  Bxc5 {[%clk 0:02:28]} 13. Nc3 {[%clk 0:02:41]}  O-O {[%clk 0:02:24]} 14. Rac1 {[%clk 0:02:41]}  Be7 {[%clk 0:02:12]} 15. Ne4 {[%clk 0:02:40]}  Nxe4 {[%clk 0:02:04]} 16. Bxe4 {[%clk 0:02:41]}  Bb7 {[%clk 0:02:03]} 17. Ne5 {[%clk 0:02:40]}  Bf6 {[%clk 0:01:32]} 18. Nxc6 {[%clk 0:02:34]}  Bxc6 {[%clk 0:01:32]} 19. Rxc6 {[%clk 0:02:33]}  Qe7 {[%clk 0:01:30]} 20. Bxf6 {[%clk 0:02:32]}  Qxf6 {[%clk 0:01:31]} 21. Qf3 {[%clk 0:02:30]}  Qb2 {[%clk 0:01:26]} 22. Rc2 {[%clk 0:02:29]} 1-0


[Site "https://www.chess.com"]

[Event "Titled Tuesday Blitz May 24 Early 2022"]
[White "Taichman, Ori"]
[Black "Xu, Yi"]
[WhiteFideId "2804069"]
[BlackFideId "8605564"]
[WhiteElo "2227"]
[BlackElo "2471"]
[Result "0-1"]
[Round "03"]
[TimeControl "180+1"]
[Date "2022.05.24"]
[WhiteClock "0:00:05"]
[BlackClock "0:00:18"]

1. e4 {[%clk 0:03:00]}  c6 {[%clk 0:03:00]} 2. d3 {[%clk 0:03:00]}  d5 {[%clk 0:03:00]} 3. Nf3 {[%clk 0:03:00]}  g6 {[%clk 0:02:59]} 4. e5 {[%clk 0:03:00]}  Bg7 {[%clk 0:02:59]} 5. g3 {[%clk 0:02:56]}  Bg4 {[%clk 0:02:55]} 6. d4 {[%clk 0:02:46]}  c5 {[%clk 0:02:53]} 7. h3 {[%clk 0:02:37]}  Bxf3 {[%clk 0:02:50]} 8. Qxf3 {[%clk 0:02:38]}  cxd4 {[%clk 0:02:44]} 9. Qb3 {[%clk 0:02:19]}  Qd7 {[%clk 0:02:32]} 10. Bf4 {[%clk 0:02:11]}  Nc6 {[%clk 0:02:30]} 11. c4 {[%clk 0:01:47]}  Na5 {[%clk 0:02:02]} 12. Qb4 {[%clk 0:01:17]}  Nxc4 {[%clk 0:02:01]} 13. Nd2 {[%clk 0:01:12]}  a5 {[%clk 0:01:27]} 14. Qc5 {[%clk 0:01:10]}  b6 {[%clk 0:01:15]} 15. Qxd4 {[%clk 0:01:09]}  Nxd2 {[%clk 0:01:12]} 16. Qxd2 {[%clk 0:00:48]}  e6 {[%clk 0:00:51]} 17. a4 {[%clk 0:00:47]}  Bf8 {[%clk 0:00:44]} 18. Kd1 {[%clk 0:00:18]}  Bb4 {[%clk 0:00:43]} 19. Qd4 {[%clk 0:00:14]}  Bc5 {[%clk 0:00:43]} 20. Qc3 {[%clk 0:00:13]}  Kf8 {[%clk 0:00:40]} 21. Bb5 {[%clk 0:00:13]}  Qb7 {[%clk 0:00:38]} 22. Qf3 {[%clk 0:00:09]}  h6 {[%clk 0:00:37]} 23. h4 {[%clk 0:00:09]}  Ne7 {[%clk 0:00:25]} 24. g4 {[%clk 0:00:09]}  Nc6 {[%clk 0:00:21]} 25. h5 {[%clk 0:00:08]}  Nd4 {[%clk 0:00:21]} 26. Qg3 {[%clk 0:00:03]}  g5 {[%clk 0:00:21]} 27. Be3 {[%clk 0:00:04]}  Nxb5 {[%clk 0:00:21]} 28. Bxc5+ {[%clk 0:00:03]}  bxc5 {[%clk 0:00:21]} 29. axb5 {[%clk 0:00:03]}  Qxb5 {[%clk 0:00:21]} 30. Kc2 {[%clk 0:00:02]}  Qc4+ {[%clk 0:00:21]} 31. Qc3 {[%clk 0:00:02]}  Qxc3+ {[%clk 0:00:21]} 32. bxc3 {[%clk 0:00:03]}  Kg7 {[%clk 0:00:16]} 33. Rhb1 {[%clk 0:00:04]}  Ra7 {[%clk 0:00:15]} 34. Rb5 {[%clk 0:00:04]}  Rc8 {[%clk 0:00:15]} 35. Raxa5 {[%clk 0:00:03]}  Rxa5 {[%clk 0:00:15]} 36. Rxa5 {[%clk 0:00:04]}  Rc7 {[%clk 0:00:16]} 37. Kd3 {[%clk 0:00:04]}  f6 {[%clk 0:00:17]} 38. exf6+ {[%clk 0:00:04]}  Kxf6 {[%clk 0:00:17]} 39. Ra6 {[%clk 0:00:04]}  Ke5 {[%clk 0:00:17]} 40. Ke3 {[%clk 0:00:04]}  c4 {[%clk 0:00:16]} 41. f3 {[%clk 0:00:04]}  Rb7 {[%clk 0:00:16]} 42. Rc6 {[%clk 0:00:04]}  Rb3 {[%clk 0:00:16]} 43. Kd2 {[%clk 0:00:04]}  Rb2+ {[%clk 0:00:17]} 44. Kc1 {[%clk 0:00:04]}  Rf2 {[%clk 0:00:17]} 45. Rc8 {[%clk 0:00:05]}  Rxf3 {[%clk 0:00:17]} 46. Rh8 {[%clk 0:00:05]}  Rf6 {[%clk 0:00:17]} 47. Kd2 {[%clk 0:00:05]}  Kf4 {[%clk 0:00:18]} 0-1


[Site "https://www.chess.com"]

[Event "Titled Tuesday Blitz May 24 Early 2022"]
[White "Tanenbaum, Zachary"]
[Black "Kejzar, Petra"]
[WhiteFideId "2060850"]
[BlackFideId "14610213"]
[WhiteElo "2168"]
[BlackElo "2004"]
[Result "1-0"]
[Round "03"]
[TimeControl "180+1"]
[Date "2022.05.25"]
[WhiteClock "0:02:44"]
[BlackClock "0:02:07"]

1. e4 {[%clk 0:02:59]}  c5 {[%clk 0:02:59]} 2. Nf3 {[%clk 0:03:00]}  d6 {[%clk 0:03:00]} 3. d4 {[%clk 0:03:00]}  cxd4 {[%clk 0:03:01]} 4. Nxd4 {[%clk 0:03:01]}  Nf6 {[%clk 0:03:01]} 5. Nc3 {[%clk 0:03:01]}  a6 {[%clk 0:03:01]} 6. Be3 {[%clk 0:03:02]}  e6 {[%clk 0:03:01]} 7. f3 {[%clk 0:03:02]}  Be7 {[%clk 0:03:02]} 8. Qd2 {[%clk 0:03:02]}  O-O {[%clk 0:03:02]} 9. g4 {[%clk 0:03:02]}  Nc6 {[%clk 0:03:03]} 10. O-O-O {[%clk 0:03:02]}  Qc7 {[%clk 0:03:01]} 11. g5 {[%clk 0:03:01]}  Nd7 {[%clk 0:03:00]} 12. h4 {[%clk 0:03:01]}  b5 {[%clk 0:02:58]} 13. h5 {[%clk 0:03:00]}  b4 {[%clk 0:02:57]} 14. Nce2 {[%clk 0:02:59]}  a5 {[%clk 0:02:53]} 15. Nxc6 {[%clk 0:02:52]}  Qxc6 {[%clk 0:02:52]} 16. Nd4 {[%clk 0:02:53]}  Qa4 {[%clk 0:02:42]} 17. Kb1 {[%clk 0:02:53]}  Ba6 {[%clk 0:02:42]} 18. Bxa6 {[%clk 0:02:49]}  Rxa6 {[%clk 0:02:41]} 19. b3 {[%clk 0:02:47]}  Qa3 {[%clk 0:02:38]} 20. Nb5 {[%clk 0:02:47]}  Ne5 {[%clk 0:02:22]} 21. Nxa3 {[%clk 0:02:47]}  bxa3 {[%clk 0:02:23]} 22. f4 {[%clk 0:02:46]}  Nc6 {[%clk 0:02:21]} 23. g6 {[%clk 0:02:45]}  Rc8 {[%clk 0:02:15]} 24. gxf7+ {[%clk 0:02:45]}  Kf8 {[%clk 0:02:12]} 25. h6 {[%clk 0:02:45]}  Bf6 {[%clk 0:02:07]} 26. Qxd6+ {[%clk 0:02:44]} 1-0


[Site "https://www.chess.com"]

[Event "Titled Tuesday Blitz May 24 Early 2022"]
[White "Tari, Aryan"]
[Black "Rostovtsev, Dmitry"]
[WhiteFideId "1510045"]
[BlackFideId "34278320"]
[WhiteElo "2567"]
[BlackElo "2274"]
[Result "1-0"]
[Round "03"]
[TimeControl "180+1"]
[Date "2022.05.24"]
[WhiteClock "0:00:57"]
[BlackClock "0:00:20"]

1. e4 {[%clk 0:03:00]}  e5 {[%clk 0:02:59]} 2. Nf3 {[%clk 0:02:57]}  Nc6 {[%clk 0:03:00]} 3. d4 {[%clk 0:02:57]}  exd4 {[%clk 0:02:59]} 4. Nxd4 {[%clk 0:02:58]}  Nf6 {[%clk 0:02:59]} 5. Nxc6 {[%clk 0:02:59]}  bxc6 {[%clk 0:03:00]} 6. e5 {[%clk 0:02:59]}  Qe7 {[%clk 0:03:00]} 7. Qe2 {[%clk 0:03:00]}  Nd5 {[%clk 0:03:01]} 8. h4 {[%clk 0:02:58]}  Qe6 {[%clk 0:02:50]} 9. Nd2 {[%clk 0:02:56]}  a5 {[%clk 0:02:23]} 10. c4 {[%clk 0:02:55]}  Nb6 {[%clk 0:02:21]} 11. Nf3 {[%clk 0:02:49]}  Bb4+ {[%clk 0:02:16]} 12. Bd2 {[%clk 0:02:46]}  Ba6 {[%clk 0:02:09]} 13. b3 {[%clk 0:02:38]}  Bxd2+ {[%clk 0:01:58]} 14. Qxd2 {[%clk 0:02:39]}  d5 {[%clk 0:01:55]} 15. cxd5 {[%clk 0:01:57]}  cxd5 {[%clk 0:01:27]} 16. Bxa6 {[%clk 0:01:57]}  Rxa6 {[%clk 0:01:28]} 17. Qe2 {[%clk 0:01:51]}  Ra8 {[%clk 0:01:24]} 18. Nd4 {[%clk 0:01:51]}  Qe7 {[%clk 0:01:18]} 19. Nf5 {[%clk 0:01:47]}  Qb4+ {[%clk 0:01:18]} 20. Kf1 {[%clk 0:01:48]}  O-O {[%clk 0:01:16]} 21. Rc1 {[%clk 0:01:19]}  c5 {[%clk 0:01:05]} 22. h5 {[%clk 0:01:15]}  h6 {[%clk 0:00:55]} 23. Rh4 {[%clk 0:01:15]}  Qa3 {[%clk 0:00:47]} 24. Rc3 {[%clk 0:01:08]}  Kh8 {[%clk 0:00:41]} 25. Rg4 {[%clk 0:01:03]}  Rg8 {[%clk 0:00:41]} 26. Qd2 {[%clk 0:01:01]}  a4 {[%clk 0:00:27]} 27. Nxh6 {[%clk 0:01:01]}  axb3 {[%clk 0:00:26]} 28. Nxf7+ {[%clk 0:01:01]}  Kh7 {[%clk 0:00:26]} 29. Qd3+ {[%clk 0:01:01]}  g6 {[%clk 0:00:25]} 30. Rxg6 {[%clk 0:00:59]}  Qxa2 {[%clk 0:00:20]} 31. Rg5+ {[%clk 0:00:57]} 1-0


[Site "https://www.chess.com"]

[Event "Titled Tuesday Blitz May 24 Early 2022"]
[White "Tymrakiewicz, Rafal"]
[Black "Liyanage, Ranindu Dilshan"]
[WhiteFideId "1108832"]
[BlackFideId "9915834"]
[WhiteElo "2205"]
[BlackElo "1858"]
[Result "0-1"]
[Round "03"]
[TimeControl "180+1"]
[Date "2022.05.25"]
[WhiteClock "0:00:07"]
[BlackClock "0:00:10"]

1. e4 {[%clk 0:03:00]}  e5 {[%clk 0:02:59]} 2. Nc3 {[%clk 0:02:59]}  Nf6 {[%clk 0:02:54]} 3. Bc4 {[%clk 0:02:59]}  Nc6 {[%clk 0:02:54]} 4. d3 {[%clk 0:02:59]}  Na5 {[%clk 0:02:55]} 5. Bg5 {[%clk 0:02:57]}  c6 {[%clk 0:02:50]} 6. Nf3 {[%clk 0:02:52]}  Nxc4 {[%clk 0:02:38]} 7. dxc4 {[%clk 0:02:53]}  h6 {[%clk 0:02:37]} 8. Bh4 {[%clk 0:02:49]}  g5 {[%clk 0:02:35]} 9. Bg3 {[%clk 0:02:49]}  d6 {[%clk 0:02:32]} 10. c5 {[%clk 0:02:49]}  g4 {[%clk 0:02:30]} 11. Nh4 {[%clk 0:02:47]}  Be6 {[%clk 0:02:22]} 12. O-O {[%clk 0:02:40]}  Nh5 {[%clk 0:02:16]} 13. cxd6 {[%clk 0:02:38]}  Nxg3 {[%clk 0:01:56]} 14. hxg3 {[%clk 0:02:27]}  Qxd6 {[%clk 0:01:54]} 15. Nf5 {[%clk 0:02:25]}  Qxd1 {[%clk 0:01:48]} 16. Rfxd1 {[%clk 0:02:22]}  h5 {[%clk 0:01:49]} 17. Nd6+ {[%clk 0:02:15]}  Bxd6 {[%clk 0:01:48]} 18. Rxd6 {[%clk 0:02:16]}  Ke7 {[%clk 0:01:49]} 19. Rad1 {[%clk 0:02:15]}  Rab8 {[%clk 0:01:31]} 20. R6d2 {[%clk 0:02:12]}  b5 {[%clk 0:01:25]} 21. b3 {[%clk 0:02:01]}  Rhd8 {[%clk 0:01:20]} 22. Rxd8 {[%clk 0:01:53]}  Rxd8 {[%clk 0:01:21]} 23. Rxd8 {[%clk 0:01:53]}  Kxd8 {[%clk 0:01:22]} 24. f3 {[%clk 0:01:36]}  Kc7 {[%clk 0:01:18]} 25. Kf2 {[%clk 0:01:35]}  Kd6 {[%clk 0:01:14]} 26. Ke3 {[%clk 0:01:34]}  Kc5 {[%clk 0:01:14]} 27. a3 {[%clk 0:01:27]}  a5 {[%clk 0:01:09]} 28. Kd3 {[%clk 0:01:20]}  f6 {[%clk 0:00:55]} 29. Nd1 {[%clk 0:01:14]}  a4 {[%clk 0:00:54]} 30. b4+ {[%clk 0:01:13]}  Kd6 {[%clk 0:00:54]} 31. Ne3 {[%clk 0:01:04]}  c5 {[%clk 0:00:54]} 32. c3 {[%clk 0:01:04]}  Kc6 {[%clk 0:00:38]} 33. Kd2 {[%clk 0:00:57]}  Kd6 {[%clk 0:00:31]} 34. Kd3 {[%clk 0:00:55]}  Bb3 {[%clk 0:00:24]} 35. fxg4 {[%clk 0:00:49]}  hxg4 {[%clk 0:00:25]} 36. Nxg4 {[%clk 0:00:48]}  cxb4 {[%clk 0:00:25]} 37. cxb4 {[%clk 0:00:47]}  Bc4+ {[%clk 0:00:25]} 38. Ke3 {[%clk 0:00:45]}  Ke6 {[%clk 0:00:23]} 39. Nh6 {[%clk 0:00:43]}  Bf1 {[%clk 0:00:22]} 40. Kf3 {[%clk 0:00:40]}  Bd3 {[%clk 0:00:21]} 41. Nf5 {[%clk 0:00:38]}  Bc2 {[%clk 0:00:20]} 42. Ne3 {[%clk 0:00:34]}  Bd3 {[%clk 0:00:21]} 43. Nd5 {[%clk 0:00:31]}  Bc4 {[%clk 0:00:21]} 44. Nc3 {[%clk 0:00:27]}  Bd3 {[%clk 0:00:20]} 45. g4 {[%clk 0:00:26]}  Bc4 {[%clk 0:00:20]} 46. Kg3 {[%clk 0:00:24]}  Bf1 {[%clk 0:00:19]} 47. Kh3 {[%clk 0:00:22]}  Bc4 {[%clk 0:00:19]} 48. Kh4 {[%clk 0:00:20]}  Bf1 {[%clk 0:00:20]} 49. g3 {[%clk 0:00:20]}  Bc4 {[%clk 0:00:19]} 50. Kh5 {[%clk 0:00:18]}  Kf7 {[%clk 0:00:18]} 51. g5 {[%clk 0:00:18]}  Kg7 {[%clk 0:00:14]} 52. gxf6+ {[%clk 0:00:18]}  Kxf6 {[%clk 0:00:15]} 53. g4 {[%clk 0:00:18]}  Bd3 {[%clk 0:00:16]} 54. g5+ {[%clk 0:00:17]}  Kg7 {[%clk 0:00:16]} 55. g6 {[%clk 0:00:18]}  Bc4 {[%clk 0:00:16]} 56. Kg5 {[%clk 0:00:18]}  Bd3 {[%clk 0:00:09]} 57. Kf5 {[%clk 0:00:17]}  Bc4 {[%clk 0:00:10]} 58. Kg4 {[%clk 0:00:12]}  Kxg6 {[%clk 0:00:11]} 59. Nd1 {[%clk 0:00:07]}  Be2+ {[%clk 0:00:10]} 0-1


[Site "https://www.chess.com"]

[Event "Titled Tuesday Blitz May 24 Early 2022"]
[White "Vakhlamov, Igor L."]
[Black "Grischuk, Alexander"]
[WhiteFideId "24126748"]
[BlackFideId "4126025"]
[WhiteElo "2401"]
[BlackElo "2762"]
[Result "1/2-1/2"]
[Round "03"]
[TimeControl "180+1"]
[Date "2022.05.24"]
[WhiteClock "0:00:11"]
[BlackClock "0:00:12"]

1. e4 {[%clk 0:03:00]}  e6 {[%clk 0:03:00]} 2. d4 {[%clk 0:03:00]}  d5 {[%clk 0:03:00]} 3. Nc3 {[%clk 0:03:01]}  Nf6 {[%clk 0:03:00]} 4. Bd3 {[%clk 0:03:01]}  c5 {[%clk 0:02:56]} 5. Nf3 {[%clk 0:03:00]}  c4 {[%clk 0:02:51]} 6. Be2 {[%clk 0:03:00]}  Bb4 {[%clk 0:02:51]} 7. e5 {[%clk 0:02:55]}  Ne4 {[%clk 0:02:48]} 8. Bd2 {[%clk 0:02:56]}  Bxc3 {[%clk 0:02:42]} 9. Bxc3 {[%clk 0:02:56]}  Nc6 {[%clk 0:02:41]} 10. O-O {[%clk 0:02:54]}  O-O {[%clk 0:02:41]} 11. Be1 {[%clk 0:02:54]}  f6 {[%clk 0:02:38]} 12. exf6 {[%clk 0:02:52]}  Qxf6 {[%clk 0:02:39]} 13. c3 {[%clk 0:02:53]}  Bd7 {[%clk 0:02:36]} 14. Nd2 {[%clk 0:02:51]}  Nd6 {[%clk 0:02:36]} 15. Nf3 {[%clk 0:02:39]}  Be8 {[%clk 0:02:33]} 16. Bd2 {[%clk 0:02:38]}  Bh5 {[%clk 0:02:30]} 17. Ne5 {[%clk 0:02:24]}  Bxe2 {[%clk 0:02:29]} 18. Qxe2 {[%clk 0:02:25]}  Qf5 {[%clk 0:02:23]} 19. Rae1 {[%clk 0:02:21]}  Rae8 {[%clk 0:02:21]} 20. f3 {[%clk 0:02:17]}  Nxe5 {[%clk 0:02:08]} 21. Qxe5 {[%clk 0:02:18]}  Qxe5 {[%clk 0:02:09]} 22. Rxe5 {[%clk 0:02:17]}  Rf5 {[%clk 0:02:09]} 23. Rfe1 {[%clk 0:02:17]}  Rxe5 {[%clk 0:02:09]} 24. Rxe5 {[%clk 0:02:17]}  Kf7 {[%clk 0:02:08]} 25. Bf4 {[%clk 0:02:17]}  Nf5 {[%clk 0:02:07]} 26. Kf2 {[%clk 0:02:15]}  b5 {[%clk 0:02:06]} 27. g4 {[%clk 0:02:06]}  Ne7 {[%clk 0:02:06]} 28. Re2 {[%clk 0:02:03]}  Nc6 {[%clk 0:02:06]} 29. Bd6 {[%clk 0:02:02]}  a5 {[%clk 0:02:03]} 30. a3 {[%clk 0:02:01]}  Rd8 {[%clk 0:01:50]} 31. Bc5 {[%clk 0:01:59]}  Rc8 {[%clk 0:01:49]} 32. h4 {[%clk 0:01:52]}  h5 {[%clk 0:01:48]} 33. Kg3 {[%clk 0:01:48]}  Rh8 {[%clk 0:01:47]} 34. Bd6 {[%clk 0:01:47]}  Rh6 {[%clk 0:01:45]} 35. Bf4 {[%clk 0:01:46]}  Rh8 {[%clk 0:01:45]} 36. Bd6 {[%clk 0:01:46]}  b4 {[%clk 0:01:36]} 37. axb4 {[%clk 0:01:47]}  axb4 {[%clk 0:01:37]} 38. Bc5 {[%clk 0:01:18]}  b3 {[%clk 0:01:34]} 39. Bd6 {[%clk 0:01:16]}  Ne7 {[%clk 0:01:22]} 40. Re1 {[%clk 0:00:40]}  Ng6 {[%clk 0:01:08]} 41. Ra1 {[%clk 0:00:29]}  hxg4 {[%clk 0:01:08]} 42. fxg4 {[%clk 0:00:30]}  Rxh4 {[%clk 0:00:56]} 43. Ra7+ {[%clk 0:00:28]}  Kg8 {[%clk 0:00:48]} 44. Be5 {[%clk 0:00:15]}  Nxe5 {[%clk 0:00:48]} 45. Kxh4 {[%clk 0:00:16]}  Nd3 {[%clk 0:00:49]} 46. Kg5 {[%clk 0:00:14]}  Kh7 {[%clk 0:00:49]} 47. Kh5 {[%clk 0:00:13]}  Nf4+ {[%clk 0:00:26]} 48. Kg5 {[%clk 0:00:12]}  Nd3 {[%clk 0:00:26]} 49. Kh5 {[%clk 0:00:12]}  Nf4+ {[%clk 0:00:17]} 50. Kg5 {[%clk 0:00:11]}  Nd3 {[%clk 0:00:12]} 1/2-1/2


[Site "https://www.chess.com"]

[Event "Titled Tuesday Blitz May 24 Early 2022"]
[White "Valle Maytin, Luis Enrique"]
[Black "Nilsen, Tobias Lang"]
[WhiteFideId "3503666"]
[BlackFideId "1521624"]
[WhiteElo "2252"]
[BlackElo "2014"]
[Result "0-1"]
[Round "03"]
[TimeControl "180+1"]
[Date "2022.05.25"]
[WhiteClock "0:00:05"]
[BlackClock "0:00:08"]

1. e4 {[%clk 0:03:00]}  e6 {[%clk 0:02:57]} 2. d4 {[%clk 0:03:00]}  d5 {[%clk 0:02:58]} 3. Bd3 {[%clk 0:03:00]}  c5 {[%clk 0:02:55]} 4. exd5 {[%clk 0:03:00]}  exd5 {[%clk 0:02:55]} 5. dxc5 {[%clk 0:03:00]}  Nf6 {[%clk 0:02:55]} 6. Ne2 {[%clk 0:02:57]}  Bxc5 {[%clk 0:02:55]} 7. O-O {[%clk 0:02:57]}  O-O {[%clk 0:02:56]} 8. Nd2 {[%clk 0:02:56]}  Nc6 {[%clk 0:02:56]} 9. c3 {[%clk 0:02:56]}  Bb6 {[%clk 0:02:56]} 10. Nb3 {[%clk 0:02:56]}  Bg4 {[%clk 0:02:55]} 11. Qc2 {[%clk 0:02:56]}  Re8 {[%clk 0:02:53]} 12. Bg5 {[%clk 0:02:46]}  h6 {[%clk 0:02:52]} 13. Bh4 {[%clk 0:02:35]}  Rc8 {[%clk 0:02:36]} 14. a3 {[%clk 0:02:17]}  a6 {[%clk 0:02:29]} 15. Kh1 {[%clk 0:02:13]}  Ne5 {[%clk 0:02:26]} 16. f3 {[%clk 0:02:06]}  Bh5 {[%clk 0:02:25]} 17. Bf5 {[%clk 0:02:00]}  Rc4 {[%clk 0:02:21]} 18. Rad1 {[%clk 0:01:55]}  Rxh4 {[%clk 0:01:56]} 19. Nbd4 {[%clk 0:01:45]}  Qd6 {[%clk 0:01:49]} 20. g3 {[%clk 0:01:36]}  Bxd4 {[%clk 0:01:26]} 21. Nxd4 {[%clk 0:01:30]}  Rxd4 {[%clk 0:01:06]} 22. Rxd4 {[%clk 0:01:05]}  Nxf3 {[%clk 0:01:06]} 23. Rf4 {[%clk 0:01:02]}  Re1 {[%clk 0:00:55]} 24. Rxe1 {[%clk 0:00:46]}  Nxe1 {[%clk 0:00:54]} 25. Qf2 {[%clk 0:00:46]}  Qe5 {[%clk 0:00:44]} 26. Qd4 {[%clk 0:00:15]}  Qxd4 {[%clk 0:00:43]} 27. Rxd4 {[%clk 0:00:15]}  Nf3 {[%clk 0:00:43]} 28. Rb4 {[%clk 0:00:15]}  b5 {[%clk 0:00:42]} 29. Kg2 {[%clk 0:00:10]}  Ne1+ {[%clk 0:00:39]} 30. Kf2 {[%clk 0:00:08]}  Nf3 {[%clk 0:00:26]} 31. g4 {[%clk 0:00:08]}  Nh4 {[%clk 0:00:26]} 32. Bc8 {[%clk 0:00:04]}  Bg6 {[%clk 0:00:22]} 33. Bxa6 {[%clk 0:00:04]}  Ne4+ {[%clk 0:00:22]} 34. Kg1 {[%clk 0:00:02]}  Nf3+ {[%clk 0:00:22]} 35. Kf1 {[%clk 0:00:03]}  Nfd2+ {[%clk 0:00:22]} 36. Kg2 {[%clk 0:00:03]}  Nc5 {[%clk 0:00:14]} 37. Bxb5 {[%clk 0:00:04]}  Be4+ {[%clk 0:00:14]} 38. Kf2 {[%clk 0:00:04]}  Ne6 {[%clk 0:00:13]} 39. Be2 {[%clk 0:00:04]}  Nf4 {[%clk 0:00:12]} 40. h4 {[%clk 0:00:04]}  g5 {[%clk 0:00:09]} 41. hxg5 {[%clk 0:00:04]}  hxg5 {[%clk 0:00:10]} 42. Ke3 {[%clk 0:00:04]}  Nxe2 {[%clk 0:00:08]} 43. Rb8+ {[%clk 0:00:05]}  Kg7 {[%clk 0:00:08]} 44. Kxe2 {[%clk 0:00:06]}  Nf3 {[%clk 0:00:08]} 45. Ke3 {[%clk 0:00:06]}  Ne5 {[%clk 0:00:09]} 46. a4 {[%clk 0:00:07]}  Nxg4+ {[%clk 0:00:09]} 47. Kd4 {[%clk 0:00:06]}  Nf6 {[%clk 0:00:07]} 48. a5 {[%clk 0:00:06]}  g4 {[%clk 0:00:07]} 49. a6 {[%clk 0:00:07]}  g3 {[%clk 0:00:08]} 50. Ke3 {[%clk 0:00:06]}  Ng4+ {[%clk 0:00:07]} 51. Ke2 {[%clk 0:00:06]}  g2 {[%clk 0:00:07]} 52. a7 {[%clk 0:00:04]}  g1=Q {[%clk 0:00:07]} 53. a8=Q {[%clk 0:00:05]}  Qe3+ {[%clk 0:00:08]} 54. Kd1 {[%clk 0:00:05]}  Nf2# {[%clk 0:00:08]} 0-1


[Site "https://www.chess.com"]

[Event "Titled Tuesday Blitz May 24 Early 2022"]
[White "Warchol, Kamil"]
[Black "Politov, Pavel Y."]
[WhiteFideId "21858241"]
[BlackFideId "24110515"]
[WhiteElo "1951"]
[BlackElo "2090"]
[Result "1-0"]
[Round "03"]
[TimeControl "180+1"]
[Date "2022.05.25"]
[WhiteClock "0:02:29"]
[BlackClock "0:02:12"]

1. e4 {[%clk 0:03:00]}  c5 {[%clk 0:02:59]} 2. Nf3 {[%clk 0:03:00]}  d6 {[%clk 0:02:58]} 3. d4 {[%clk 0:03:00]}  cxd4 {[%clk 0:02:59]} 4. Nxd4 {[%clk 0:03:00]}  Nf6 {[%clk 0:02:59]} 5. Nc3 {[%clk 0:03:00]}  a6 {[%clk 0:03:00]} 6. f4 {[%clk 0:03:00]}  e5 {[%clk 0:02:57]} 7. Nf3 {[%clk 0:03:00]}  Nc6 {[%clk 0:02:49]} 8. fxe5 {[%clk 0:02:57]}  Nxe5 {[%clk 0:02:39]} 9. Nxe5 {[%clk 0:02:50]}  dxe5 {[%clk 0:02:40]} 10. Qxd8+ {[%clk 0:02:50]}  Kxd8 {[%clk 0:02:41]} 11. Bg5 {[%clk 0:02:46]}  Bb4 {[%clk 0:02:23]} 12. O-O-O+ {[%clk 0:02:43]}  Ke7 {[%clk 0:02:22]} 13. Bxf6+ {[%clk 0:02:32]}  gxf6 {[%clk 0:02:12]} 14. Nd5+ {[%clk 0:02:29]} 1-0


[Site "https://www.chess.com"]

[Event "Titled Tuesday Blitz May 24 Early 2022"]
[White "Yaksin, Oleg"]
[Black "Bifulco, Michel"]
[WhiteFideId "24105880"]
[BlackFideId "828580"]
[WhiteElo "2256"]
[BlackElo "2165"]
[Result "1-0"]
[Round "03"]
[TimeControl "180+1"]
[Date "2022.05.25"]
[WhiteClock "0:00:33"]
[BlackClock "0:00:21"]

1. d4 {[%clk 0:02:51]}  Nf6 {[%clk 0:02:59]} 2. c4 {[%clk 0:02:51]}  g6 {[%clk 0:03:00]} 3. g3 {[%clk 0:02:51]}  Bg7 {[%clk 0:03:00]} 4. Bg2 {[%clk 0:02:50]}  d6 {[%clk 0:03:01]} 5. Nc3 {[%clk 0:02:50]}  O-O {[%clk 0:03:01]} 6. Nf3 {[%clk 0:02:51]}  Nc6 {[%clk 0:03:01]} 7. O-O {[%clk 0:02:51]}  a6 {[%clk 0:02:59]} 8. b3 {[%clk 0:02:51]}  Rb8 {[%clk 0:02:58]} 9. Nd5 {[%clk 0:02:51]}  b5 {[%clk 0:02:55]} 10. Nxf6+ {[%clk 0:02:43]}  Bxf6 {[%clk 0:02:54]} 11. cxb5 {[%clk 0:02:44]}  axb5 {[%clk 0:02:54]} 12. Bb2 {[%clk 0:02:44]}  Bd7 {[%clk 0:02:44]} 13. Rc1 {[%clk 0:02:42]}  Ra8 {[%clk 0:02:28]} 14. a3 {[%clk 0:02:41]}  e5 {[%clk 0:02:18]} 15. dxe5 {[%clk 0:02:29]}  dxe5 {[%clk 0:02:19]} 16. Nd2 {[%clk 0:01:55]}  Ra6 {[%clk 0:01:59]} 17. Ne4 {[%clk 0:01:53]}  Be7 {[%clk 0:01:57]} 18. Nc5 {[%clk 0:01:43]}  Bxc5 {[%clk 0:01:56]} 19. Rxc5 {[%clk 0:01:44]}  Qe7 {[%clk 0:01:53]} 20. b4 {[%clk 0:01:39]}  Rd8 {[%clk 0:01:45]} 21. Bxc6 {[%clk 0:00:49]}  Bxc6 {[%clk 0:01:39]} 22. Rxe5 {[%clk 0:00:47]}  Qf8 {[%clk 0:01:16]} 23. Qc1 {[%clk 0:00:46]}  h5 {[%clk 0:00:28]} 24. Rxh5 {[%clk 0:00:34]}  gxh5 {[%clk 0:00:22]} 25. Qg5+ {[%clk 0:00:33]}  Kh7 {[%clk 0:00:21]} 26. Qxh5+ {[%clk 0:00:33]} 1-0


[Site "https://www.chess.com"]